[Event "*** Titled Tuesday Blitz"]
[Site "Chess.com"]
[Date "2019.02.05"]
[Round "6"]
[White "GMsKoRPioN"]
[Black "Sanan_Sjugirov"]
[Result "0-1"]
[WhiteElo "2556"]
[BlackElo "2825"]
[TimeControl "180+2"]
[EndTime "14:24:55 PST"]
[Termination "Sanan_Sjugirov won by resignation"]

1. d4 {[%clk 0:02:58.8]} 1... g6 {[%clk 0:03:00.5]} 2. c4 {[%clk 0:03:00.2]}
2... Bg7 {[%clk 0:03:01.6]} 3. e4 {[%clk 0:03:01]} 3... d6 {[%clk 0:03:02.8]} 4.
Nc3 {[%clk 0:03:02.4]} 4... Nc6 {[%clk 0:03:03.3]} 5. Be3 {[%clk 0:03:02.9]}
5... e5 {[%clk 0:03:03.1]} 6. d5 {[%clk 0:03:03.8]} 6... Nce7 {[%clk 0:03:01.5]}
7. f3 {[%clk 0:03:04.8]} 7... f5 {[%clk 0:03:00.6]} 8. Qd2 {[%clk 0:03:06.1]}
8... Nf6 {[%clk 0:03:00.5]} 9. O-O-O {[%clk 0:03:07]} 9... O-O {[%clk
0:02:56.6]} 10. Bd3 {[%clk 0:02:56.9]} 10... Bd7 {[%clk 0:02:36.6]} 11. Kb1
{[%clk 0:02:57.2]} 11... a6 {[%clk 0:02:31.3]} 12. Rc1 {[%clk 0:02:56.7]} 12...
b5 {[%clk 0:02:29.8]} 13. c5 {[%clk 0:02:57.9]} 13... b4 {[%clk 0:02:27.1]} 14.
Nce2 {[%clk 0:02:50.8]} 14... Bb5 {[%clk 0:02:23.5]} 15. Nh3 {[%clk 0:02:14.2]}
15... fxe4 {[%clk 0:02:03.5]} 16. fxe4 {[%clk 0:02:12.2]} 16... Qd7 {[%clk
0:01:45.2]} 17. Ng5 {[%clk 0:01:36.2]} 17... Qg4 {[%clk 0:01:41.6]} 18. Ng3
{[%clk 0:01:31.9]} 18... Bh6 {[%clk 0:01:23.6]} 19. Ne6 {[%clk 0:01:27.7]} 19...
Bxd3+ {[%clk 0:01:24.2]} 20. Qxd3 {[%clk 0:01:28.6]} 20... Bxe3 {[%clk
0:01:25.7]} 21. Qxe3 {[%clk 0:01:30.5]} 21... Nexd5 {[%clk 0:01:24.2]} 22. exd5
{[%clk 0:00:55]} 22... Nxd5 {[%clk 0:01:26.1]} 23. Qd2 {[%clk 0:00:45.2]} 23...
Qxe6 {[%clk 0:01:26.3]} 24. Rhd1 {[%clk 0:00:46.6]} 24... c6 {[%clk 0:01:03.2]}
25. cxd6 {[%clk 0:00:47.3]} 25... Qxd6 {[%clk 0:01:04.6]} 26. Ne4 {[%clk
0:00:46.9]} 26... Qe6 {[%clk 0:01:01.4]} 27. Ka1 {[%clk 0:00:39.1]} 27... Rf4
{[%clk 0:01:01.9]} 28. Nc5 {[%clk 0:00:36.8]} 28... Qd6 {[%clk 0:00:58.7]} 29.
g3 {[%clk 0:00:33.1]} 29... Rd4 {[%clk 0:00:59]} 30. Qc2 {[%clk 0:00:32.5]}
30... Rxd1 {[%clk 0:00:49.1]} 31. Rxd1 {[%clk 0:00:33]} 31... Rf8 {[%clk
0:00:49.8]} 32. Ne4 {[%clk 0:00:34.1]} 32... Qe6 {[%clk 0:00:49.9]} 33. Rc1
{[%clk 0:00:21]} 33... Kg7 {[%clk 0:00:46.1]} 34. h4 {[%clk 0:00:16.8]} 34... a5
{[%clk 0:00:41.3]} 35. Ng5 {[%clk 0:00:17.1]} 35... Qf6 {[%clk 0:00:35.2]} 36.
Qc5 {[%clk 0:00:13]} 36... h6 {[%clk 0:00:30.7]} 37. Ne4 {[%clk 0:00:11]} 37...
Qe6 {[%clk 0:00:30.2]} 38. Qxa5 {[%clk 0:00:12.1]} 38... b3 {[%clk 0:00:28.2]}
39. Qa7+ {[%clk 0:00:12.1]} 39... Rf7 {[%clk 0:00:28.2]} 40. Qc5 {[%clk
0:00:13.1]} 40... bxa2 {[%clk 0:00:27.9]} 41. Nd6 {[%clk 0:00:13]} 41... Rd7
{[%clk 0:00:25.8]} 42. Ne4 {[%clk 0:00:13.8]} 42... Rc7 {[%clk 0:00:23.6]} 43.
h5 {[%clk 0:00:12.8]} 43... gxh5 {[%clk 0:00:24.2]} 44. Qc2 {[%clk 0:00:10.2]}
44... Rf7 {[%clk 0:00:19.5]} 45. Qxc6 {[%clk 0:00:09.3]} 45... Qxc6 {[%clk
0:00:20.3]} 46. Rxc6 {[%clk 0:00:10.4]} 46... Rf1+ {[%clk 0:00:21.5]} 47. Kxa2
{[%clk 0:00:11.7]} 47... Nb4+ {[%clk 0:00:22.9]} 48. Kb3 {[%clk 0:00:13]} 48...
Nxc6 {[%clk 0:00:24.8]} 0-1

[Event "*** Titled Tuesday Blitz"]
[Site "Chess.com"]
[Date "2019.02.05"]
[Round "6"]
[White "Gentlejimmy7"]
[Black "Romn69"]
[Result "1-0"]
[WhiteElo "2302"]
[BlackElo "2258"]
[TimeControl "180+2"]
[EndTime "14:25:10 PST"]
[Termination "Gentlejimmy7 won by resignation"]

1. d4 {[%clk 0:03:01.9]} 1... Nf6 {[%clk 0:02:58.7]} 2. Nf3 {[%clk 0:03:03.3]}
2... d5 {[%clk 0:02:58.9]} 3. c4 {[%clk 0:03:03.8]} 3... e6 {[%clk 0:02:59.7]}
4. g3 {[%clk 0:03:04.5]} 4... dxc4 {[%clk 0:02:59.9]} 5. Bg2 {[%clk 0:03:05]}
5... c5 {[%clk 0:03:00.9]} 6. O-O {[%clk 0:03:03.6]} 6... Nc6 {[%clk 0:03:01.5]}
7. dxc5 {[%clk 0:03:03.5]} 7... Qxd1 {[%clk 0:03:01.9]} 8. Rxd1 {[%clk
0:03:03.4]} 8... Bxc5 {[%clk 0:03:03.8]} 9. Nbd2 {[%clk 0:03:04.2]} 9... c3
{[%clk 0:03:04.7]} 10. bxc3 {[%clk 0:03:04.4]} 10... O-O {[%clk 0:03:05]} 11.
Nb3 {[%clk 0:03:05.2]} 11... Be7 {[%clk 0:03:05.7]} 12. Nfd4 {[%clk 0:03:05.5]}
12... Bd7 {[%clk 0:03:06.4]} 13. Nxc6 {[%clk 0:02:58.3]} 13... Bxc6 {[%clk
0:03:06.9]} 14. Bxc6 {[%clk 0:02:58.5]} 14... bxc6 {[%clk 0:03:07.8]} 15. c4
{[%clk 0:02:59.7]} 15... Rfd8 {[%clk 0:02:57.1]} 16. Be3 {[%clk 0:02:58.5]}
16... a5 {[%clk 0:02:52.7]} 17. Rxd8+ {[%clk 0:02:47.7]} 17... Bxd8 {[%clk
0:02:47.5]} 18. Nc5 {[%clk 0:02:43.3]} 18... Bb6 {[%clk 0:02:37.9]} 19. Rb1
{[%clk 0:02:43.2]} 19... Bxc5 {[%clk 0:02:28.4]} 20. Bxc5 {[%clk 0:02:44]} 20...
Ne4 {[%clk 0:02:29.2]} 21. Bd4 {[%clk 0:02:45.2]} 21... f6 {[%clk 0:02:13.4]}
22. Rb6 {[%clk 0:02:37.1]} 22... c5 {[%clk 0:02:07.2]} 23. Be3 {[%clk
0:02:24.6]} 23... Nc3 {[%clk 0:01:26.8]} 24. Bxc5 {[%clk 0:02:02.3]} 24... Nxe2+
{[%clk 0:01:18.3]} 25. Kf1 {[%clk 0:02:01.2]} 25... Nc3 {[%clk 0:01:18.6]} 26.
Bd6 {[%clk 0:01:51.6]} 26... Ne4 {[%clk 0:00:57.8]} 27. Bf4 {[%clk 0:01:39]}
27... Rc8 {[%clk 0:00:56.7]} 28. Ra6 {[%clk 0:01:33.9]} 28... Rxc4 {[%clk
0:00:49.3]} 29. Rxa5 {[%clk 0:01:34.4]} 29... Nc3 {[%clk 0:00:44.1]} 30. Bd2
{[%clk 0:01:27.9]} 30... Ne4 {[%clk 0:00:35.1]} 31. Be1 {[%clk 0:01:20.3]} 31...
Kf7 {[%clk 0:00:28.5]} 32. h4 {[%clk 0:01:20.7]} 32... h5 {[%clk 0:00:24.4]} 33.
Rxh5 {[%clk 0:01:17.9]} 33... f5 {[%clk 0:00:24.8]} 34. g4 {[%clk 0:01:13.7]}
34... Kf6 {[%clk 0:00:13]} 35. Rh8 {[%clk 0:01:10.6]} 35... Ra4 {[%clk
0:00:12.8]} 36. f3 {[%clk 0:01:06.1]} 36... Nd6 {[%clk 0:00:07.9]} 37. Bc3+
{[%clk 0:01:01.7]} 37... Kf7 {[%clk 0:00:08.4]} 38. Rd8 {[%clk 0:00:56.2]} 38...
Nb5 {[%clk 0:00:05.4]} 39. Be5 {[%clk 0:00:51.1]} 39... g6 {[%clk 0:00:05.6]}
40. Rb8 {[%clk 0:00:46]} 40... Na7 {[%clk 0:00:03.6]} 41. Rb7+ {[%clk
0:00:44.9]} 41... Ke8 {[%clk 0:00:03.8]} 42. h5 {[%clk 0:00:44.4]} 42... gxh5
{[%clk 0:00:04.4]} 43. g5 {[%clk 0:00:45.8]} 43... Nc6 {[%clk 0:00:03.9]} 44. g6
{[%clk 0:00:40]} 44... Ne7 {[%clk 0:00:02.4]} 45. g7 {[%clk 0:00:39.6]} 45...
Ra8 {[%clk 0:00:02.9]} 46. Bd6 {[%clk 0:00:25]} 46... Ng8 {[%clk 0:00:04.8]} 47.
a3 {[%clk 0:00:22.4]} 47... Ra4 {[%clk 0:00:05.2]} 48. Rb8+ {[%clk 0:00:19.7]}
48... Kf7 {[%clk 0:00:05.5]} 49. Be5 {[%clk 0:00:21.3]} 49... Ra7 {[%clk
0:00:06]} 50. Rf8+ {[%clk 0:00:22.6]} 50... Kg6 {[%clk 0:00:03.9]} 51. Rxg8
{[%clk 0:00:24.1]} 1-0

[Event "*** Titled Tuesday Blitz"]
[Site "Chess.com"]
[Date "2019.02.05"]
[Round "6"]
[White "robbykevlishvili"]
[Black "Astaneh"]
[Result "1-0"]
[WhiteElo "2751"]
[BlackElo "2553"]
[TimeControl "180+2"]
[EndTime "14:25:20 PST"]
[Termination "robbykevlishvili won on time"]

1. e4 {[%clk 0:03:01.9]} 1... c6 {[%clk 0:03:01.9]} 2. d4 {[%clk 0:03:02.4]}
2... d5 {[%clk 0:03:03.8]} 3. e5 {[%clk 0:03:03.9]} 3... c5 {[%clk 0:03:05.2]}
4. Nf3 {[%clk 0:03:03.8]} 4... cxd4 {[%clk 0:03:06.4]} 5. Nxd4 {[%clk
0:03:05.7]} 5... e6 {[%clk 0:03:07.4]} 6. Nd2 {[%clk 0:03:05.6]} 6... Ne7 {[%clk
0:03:08.6]} 7. N2f3 {[%clk 0:03:06.6]} 7... Nbc6 {[%clk 0:03:09.2]} 8. Nxc6
{[%clk 0:03:05.1]} 8... Nxc6 {[%clk 0:03:07.5]} 9. Bd3 {[%clk 0:03:07]} 9... Qc7
{[%clk 0:03:07.5]} 10. Qe2 {[%clk 0:03:06.8]} 10... h6 {[%clk 0:03:06.1]} 11.
O-O {[%clk 0:03:07.7]} 11... g5 {[%clk 0:03:07.1]} 12. h3 {[%clk 0:03:08.1]}
12... Bg7 {[%clk 0:03:08.1]} 13. Re1 {[%clk 0:03:08.6]} 13... Bd7 {[%clk
0:03:08.8]} 14. Bd2 {[%clk 0:03:09.7]} 14... O-O-O {[%clk 0:03:10]} 15. b4
{[%clk 0:03:09]} 15... Kb8 {[%clk 0:03:01.5]} 16. a4 {[%clk 0:03:03.2]} 16...
Rdg8 {[%clk 0:03:02.4]} 17. a5 {[%clk 0:03:03.9]} 17... g4 {[%clk 0:02:54.4]}
18. hxg4 {[%clk 0:03:04.4]} 18... Bf8 {[%clk 0:02:56]} 19. b5 {[%clk 0:03:04.9]}
19... Nb4 {[%clk 0:02:57.2]} 20. Nd4 {[%clk 0:03:03.5]} 20... Nxd3 {[%clk
0:02:35.5]} 21. cxd3 {[%clk 0:03:05.4]} 21... Qd8 {[%clk 0:02:20]} 22. Rab1
{[%clk 0:02:54.1]} 22... Qh4 {[%clk 0:02:20.5]} 23. Nc6+ {[%clk 0:02:49.1]}
23... Ka8 {[%clk 0:02:17.1]} 24. Nd4 {[%clk 0:02:22.7]} 24... Rxg4 {[%clk
0:02:14.5]} 25. Nf3 {[%clk 0:02:21.5]} 25... Qh3 {[%clk 0:01:44.4]} 26. g3
{[%clk 0:02:22.5]} 26... Rhg8 {[%clk 0:01:42.2]} 27. Nh2 {[%clk 0:02:20.4]}
27... Rh4 {[%clk 0:01:28.9]} 28. f4 {[%clk 0:02:07.4]} 28... Rxg3+ {[%clk
0:01:00.8]} 29. Kh1 {[%clk 0:02:04.2]} 29... Qf5 {[%clk 0:00:49.3]} 30. Rg1
{[%clk 0:01:59.3]} 30... Rxh2+ {[%clk 0:00:50.1]} 31. Qxh2 {[%clk 0:01:58.7]}
31... Rh3 {[%clk 0:00:51.6]} 32. Rg8 {[%clk 0:01:56.1]} 32... Rxh2+ {[%clk
0:00:46.2]} 33. Kxh2 {[%clk 0:01:53.2]} 33... Qh5+ {[%clk 0:00:16.6]} 34. Kg1
{[%clk 0:01:52.4]} 34... Be8 {[%clk 0:00:17.8]} 35. Rxf8 {[%clk 0:01:46.4]}
35... Qg4+ {[%clk 0:00:15.3]} 36. Kf2 {[%clk 0:01:46.9]} 36... Qh4+ {[%clk
0:00:16.6]} 37. Ke2 {[%clk 0:01:47.7]} 37... Qe7 {[%clk 0:00:16.7]} 38. Bb4
{[%clk 0:01:47.9]} 38... Qd7 {[%clk 0:00:18]} 39. Rg1 {[%clk 0:01:47.2]} 39...
Qxb5 {[%clk 0:00:16.6]} 40. Rgg8 {[%clk 0:01:47.5]} 40... b6 {[%clk 0:00:18.2]}
41. a6 {[%clk 0:01:45.1]} 41... Qxa6 {[%clk 0:00:18.3]} 42. Rxe8+ {[%clk
0:01:46.1]} 42... Kb7 {[%clk 0:00:20.2]} 43. Rb8+ {[%clk 0:01:46.9]} 43... Kc6
{[%clk 0:00:21.4]} 44. Rgc8+ {[%clk 0:01:46.9]} 44... Kb5 {[%clk 0:00:22.9]} 45.
Bd2 {[%clk 0:01:48.1]} 45... Qa1 {[%clk 0:00:22.1]} 46. Rc1 {[%clk 0:01:48.1]}
46... Qd4 {[%clk 0:00:22.5]} 47. Rb7 {[%clk 0:01:47.5]} 47... f6 {[%clk
0:00:20.6]} 48. exf6 {[%clk 0:01:47.5]} 48... Qxf6 {[%clk 0:00:19.5]} 49. Rxa7
{[%clk 0:01:48.6]} 49... Qg6 {[%clk 0:00:19]} 50. Rb1+ {[%clk 0:01:46.5]} 50...
Kc6 {[%clk 0:00:19.9]} 51. Rc1+ {[%clk 0:01:32.2]} 51... Kb5 {[%clk 0:00:20.9]}
52. Be3 {[%clk 0:01:24.4]} 52... Qg4+ {[%clk 0:00:19.8]} 53. Kd2 {[%clk
0:01:25.2]} 53... d4 {[%clk 0:00:15.5]} 54. Bxd4 {[%clk 0:01:22.5]} 54... Qxf4+
{[%clk 0:00:16.6]} 55. Be3 {[%clk 0:01:23.6]} 55... Qh2+ {[%clk 0:00:17.4]} 56.
Kc3 {[%clk 0:01:23.8]} 56... Kc6 {[%clk 0:00:13.6]} 57. Raa1 {[%clk 0:01:20.3]}
57... Qe5+ {[%clk 0:00:11.8]} 58. Bd4 {[%clk 0:01:21.3]} 58... Qe2 {[%clk
0:00:12.8]} 59. Rab1 {[%clk 0:01:20.2]} 59... b5 {[%clk 0:00:13.5]} 60. Re1
{[%clk 0:01:20.8]} 60... Qg4 {[%clk 0:00:13.9]} 61. Re5 {[%clk 0:01:19.8]} 61...
h5 {[%clk 0:00:07.7]} 62. Rbxb5 {[%clk 0:01:18]} 62... h4 {[%clk 0:00:09.1]} 63.
Rb6+ {[%clk 0:01:15.6]} 63... Kd7 {[%clk 0:00:10.5]} 64. Rexe6 {[%clk
0:01:14.4]} 64... h3 {[%clk 0:00:09.5]} 65. Rh6 {[%clk 0:01:09.1]} 65... Qg2
{[%clk 0:00:06]} 66. Rh7+ {[%clk 0:01:07]} 66... Kc8 {[%clk 0:00:06.9]} 67. Be5
{[%clk 0:01:00.1]} 1-0

[Event "*** Titled Tuesday Blitz"]
[Site "Chess.com"]
[Date "2019.02.05"]
[Round "6"]
[White "Hieronymus00"]
[Black "Perecke"]
[Result "0-1"]
[WhiteElo "2156"]
[BlackElo "2052"]
[TimeControl "180+2"]
[EndTime "14:25:38 PST"]
[Termination "Perecke won by resignation"]

1. e4 {[%clk 0:03:01.9]} 1... e5 {[%clk 0:02:59.8]} 2. Nf3 {[%clk 0:03:02.5]}
2... Nc6 {[%clk 0:02:59.9]} 3. Bb5 {[%clk 0:03:03.9]} 3... a6 {[%clk 0:02:59.6]}
4. Ba4 {[%clk 0:03:04.5]} 4... Nf6 {[%clk 0:03:00.4]} 5. O-O {[%clk 0:03:05.7]}
5... Be7 {[%clk 0:02:58]} 6. Re1 {[%clk 0:03:06.2]} 6... b5 {[%clk 0:02:59.2]}
7. Bb3 {[%clk 0:03:06.3]} 7... d6 {[%clk 0:03:00.3]} 8. c3 {[%clk 0:03:07.1]}
8... O-O {[%clk 0:03:01.2]} 9. h3 {[%clk 0:03:08.5]} 9... Na5 {[%clk 0:03:01.6]}
10. Bc2 {[%clk 0:03:09.3]} 10... c5 {[%clk 0:03:02.8]} 11. d4 {[%clk 0:03:10.5]}
11... Qc7 {[%clk 0:03:03.4]} 12. Nbd2 {[%clk 0:03:11.7]} 12... cxd4 {[%clk
0:03:03.8]} 13. cxd4 {[%clk 0:03:12.5]} 13... Nc6 {[%clk 0:03:05.1]} 14. d5
{[%clk 0:03:03.9]} 14... Nb4 {[%clk 0:03:02.8]} 15. Bb1 {[%clk 0:03:04.8]} 15...
a5 {[%clk 0:03:03.1]} 16. Nf1 {[%clk 0:02:59.7]} 16... a4 {[%clk 0:02:54.6]} 17.
Ng3 {[%clk 0:02:40.4]} 17... Bd7 {[%clk 0:02:50.4]} 18. Bd2 {[%clk 0:01:52.8]}
18... Na6 {[%clk 0:02:48.5]} 19. Bd3 {[%clk 0:01:51]} 19... b4 {[%clk
0:02:42.1]} 20. Rc1 {[%clk 0:01:50.1]} 20... Qb7 {[%clk 0:02:33.8]} 21. Qe2
{[%clk 0:01:39.9]} 21... Nc5 {[%clk 0:02:32.6]} 22. Bb1 {[%clk 0:01:39.1]} 22...
Bb5 {[%clk 0:02:28.9]} 23. Qe3 {[%clk 0:01:39]} 23... Ba6 {[%clk 0:02:17.3]} 24.
Nf5 {[%clk 0:01:37.3]} 24... Bd8 {[%clk 0:02:10.7]} 25. Nxd6 {[%clk 0:01:34]}
25... Qb8 {[%clk 0:01:56.1]} 26. Qxc5 {[%clk 0:01:24.2]} 26... Be7 {[%clk
0:01:24.5]} 27. Bxb4 {[%clk 0:01:19.4]} 27... Rc8 {[%clk 0:01:17.9]} 28. Qe3
{[%clk 0:00:47.2]} 28... Rxc1 {[%clk 0:01:12.9]} 29. Rxc1 {[%clk 0:00:47.6]}
29... Qxb4 {[%clk 0:01:11.2]} 30. Nf5 {[%clk 0:00:47.4]} 30... Bf8 {[%clk
0:01:02.7]} 31. Nxe5 {[%clk 0:00:46.9]} 31... Qxb2 {[%clk 0:01:02.1]} 32. Nc6
{[%clk 0:00:39.5]} 32... Re8 {[%clk 0:00:42.3]} 33. Qf4 {[%clk 0:00:25.7]} 33...
g6 {[%clk 0:00:29.2]} 34. Nfd4 {[%clk 0:00:22]} 34... Nh5 {[%clk 0:00:22.6]} 35.
Qe3 {[%clk 0:00:19.4]} 35... Nf6 {[%clk 0:00:20.3]} 36. Qf4 {[%clk 0:00:19.5]}
36... Nh5 {[%clk 0:00:19.7]} 37. Qe3 {[%clk 0:00:19.8]} 37... Nf6 {[%clk
0:00:20.8]} 38. Qc3 {[%clk 0:00:16.7]} 38... Qxc3 {[%clk 0:00:12.4]} 39. Rxc3
{[%clk 0:00:18.6]} 39... Nxe4 {[%clk 0:00:13.6]} 40. Bxe4 {[%clk 0:00:19.1]}
40... Rxe4 {[%clk 0:00:15.5]} 41. Kh2 {[%clk 0:00:15.1]} 41... Bd6+ {[%clk
0:00:14.4]} 42. g3 {[%clk 0:00:15.4]} 42... Re1 {[%clk 0:00:13.7]} 43. Kg2
{[%clk 0:00:15.4]} 43... Bb7 {[%clk 0:00:13]} 44. Re3 {[%clk 0:00:15]} 44... Ra1
{[%clk 0:00:10.4]} 45. a3 {[%clk 0:00:15.2]} 45... Rxa3 {[%clk 0:00:08.6]} 46.
Rxa3 {[%clk 0:00:11.9]} 46... Bxa3 {[%clk 0:00:10.5]} 47. Nb5 {[%clk 0:00:12.8]}
47... Bc5 {[%clk 0:00:09.7]} 48. Nc3 {[%clk 0:00:11.7]} 48... a3 {[%clk
0:00:08.5]} 49. Kf3 {[%clk 0:00:12.7]} 49... Kf8 {[%clk 0:00:07.3]} 50. Ke4
{[%clk 0:00:13.6]} 50... Ke8 {[%clk 0:00:07.8]} 51. f4 {[%clk 0:00:14.5]} 51...
Kd7 {[%clk 0:00:06.5]} 52. Ne5+ {[%clk 0:00:15.6]} 52... Ke7 {[%clk 0:00:06.1]}
53. Nc4 {[%clk 0:00:16.6]} 53... f5+ {[%clk 0:00:06.3]} 54. Ke5 {[%clk
0:00:16.1]} 54... Bb4 {[%clk 0:00:05]} 55. Na2 {[%clk 0:00:16.8]} 55... Bc5
{[%clk 0:00:05.8]} 56. d6+ {[%clk 0:00:17.4]} 56... Kd7 {[%clk 0:00:05.7]} 57.
Nc3 {[%clk 0:00:17.9]} 57... Ba6 {[%clk 0:00:06.5]} 58. Nd2 {[%clk 0:00:13.8]}
58... Bxd6+ {[%clk 0:00:07.2]} 59. Kd5 {[%clk 0:00:14.4]} 59... Bb4 {[%clk
0:00:08.3]} 60. Kd4 {[%clk 0:00:11.8]} 60... a2 {[%clk 0:00:08.9]} 61. Nxa2
{[%clk 0:00:11.6]} 61... Bxd2 {[%clk 0:00:09.6]} 0-1

[Event "*** Titled Tuesday Blitz"]
[Site "Chess.com"]
[Date "2019.02.05"]
[Round "6"]
[White "Gubajdullin"]
[Black "AbdAlAgathos"]
[Result "0-1"]
[WhiteElo "2459"]
[BlackElo "2332"]
[TimeControl "180+2"]
[EndTime "14:26:01 PST"]
[Termination "AbdAlAgathos won by checkmate"]

1. d4 {[%clk 0:02:55.5]} 1... f5 {[%clk 0:02:59.5]} 2. Bf4 {[%clk 0:02:54.1]}
2... Nf6 {[%clk 0:03:00.1]} 3. e3 {[%clk 0:02:55]} 3... g6 {[%clk 0:03:01]} 4.
Nf3 {[%clk 0:02:55.6]} 4... Bg7 {[%clk 0:03:02.6]} 5. Be2 {[%clk 0:02:53.9]}
5... O-O {[%clk 0:03:03.6]} 6. O-O {[%clk 0:02:52.4]} 6... d6 {[%clk 0:03:03.8]}
7. h3 {[%clk 0:02:53.3]} 7... Nc6 {[%clk 0:03:03.8]} 8. c3 {[%clk 0:02:52.9]}
8... Qe8 {[%clk 0:03:00.9]} 9. a4 {[%clk 0:02:51]} 9... e5 {[%clk 0:03:01.1]}
10. Bh2 {[%clk 0:02:50.6]} 10... e4 {[%clk 0:02:58]} 11. Nfd2 {[%clk 0:02:49.1]}
11... g5 {[%clk 0:02:55.5]} 12. a5 {[%clk 0:02:42.1]} 12... Qg6 {[%clk 0:02:49]}
13. a6 {[%clk 0:02:38.8]} 13... b6 {[%clk 0:02:49.8]} 14. Na3 {[%clk 0:02:37.4]}
14... Nd8 {[%clk 0:02:31.5]} 15. Nb5 {[%clk 0:02:35]} 15... Rf7 {[%clk
0:02:26.5]} 16. f3 {[%clk 0:02:25.1]} 16... Nd5 {[%clk 0:01:52.3]} 17. Nc4
{[%clk 0:02:17.9]} 17... c6 {[%clk 0:01:42]} 18. Nbxd6 {[%clk 0:02:15.9]} 18...
b5 {[%clk 0:01:37.2]} 19. Nxf7 {[%clk 0:02:13.2]} 19... Nxf7 {[%clk 0:01:36.3]}
20. fxe4 {[%clk 0:02:09.8]} 20... fxe4 {[%clk 0:01:36.5]} 21. Rxf7 {[%clk
0:02:02.8]} 21... Qxf7 {[%clk 0:01:32.1]} 22. Nd6 {[%clk 0:02:02.6]} 22... Qg6
{[%clk 0:01:18.3]} 23. Qd2 {[%clk 0:01:52.8]} 23... g4 {[%clk 0:01:16]} 24. Bxg4
{[%clk 0:01:06.9]} 24... Bh6 {[%clk 0:01:14.9]} 25. Re1 {[%clk 0:00:54.5]} 25...
Bxg4 {[%clk 0:01:12.7]} 26. hxg4 {[%clk 0:00:55.2]} 26... Rf8 {[%clk 0:00:57.8]}
27. Nf5 {[%clk 0:00:50.7]} 27... Bg5 {[%clk 0:00:52.4]} 28. Qc2 {[%clk 0:00:41]}
28... Qe6 {[%clk 0:00:48.6]} 29. c4 {[%clk 0:00:41.2]} 29... bxc4 {[%clk
0:00:48.7]} 30. Qxc4 {[%clk 0:00:40.9]} 30... h5 {[%clk 0:00:48.9]} 31. Bd6
{[%clk 0:00:24]} 31... Rd8 {[%clk 0:00:33.4]} 32. Bf4 {[%clk 0:00:20.5]} 32...
Nxf4 {[%clk 0:00:26.2]} 33. Qxe6+ {[%clk 0:00:16.7]} 33... Nxe6 {[%clk
0:00:28.1]} 34. gxh5 {[%clk 0:00:17.6]} 34... Rb8 {[%clk 0:00:26]} 35. Rc1
{[%clk 0:00:17.2]} 35... Nxd4 {[%clk 0:00:24.9]} 36. Rc5 {[%clk 0:00:08.6]}
36... Nxf5 {[%clk 0:00:22.8]} 37. Rxf5 {[%clk 0:00:09.2]} 37... Bxe3+ {[%clk
0:00:24.4]} 38. Kh2 {[%clk 0:00:08.6]} 38... Rxb2 {[%clk 0:00:19.2]} 39. Rf6
{[%clk 0:00:08.7]} 39... Rb5 {[%clk 0:00:17.1]} 40. Rxc6 {[%clk 0:00:08]} 40...
Rxh5+ {[%clk 0:00:17.3]} 41. Kg3 {[%clk 0:00:09]} 41... Re5 {[%clk 0:00:16.7]}
42. Rc4 {[%clk 0:00:04.4]} 42... Re6 {[%clk 0:00:12.7]} 43. Kg4 {[%clk
0:00:02.9]} 43... Kf7 {[%clk 0:00:08.4]} 44. Kf5 {[%clk 0:00:03.8]} 44... Bb6
{[%clk 0:00:06.9]} 45. Rxe4 {[%clk 0:00:03.3]} 45... Rxe4 {[%clk 0:00:06.4]} 46.
Kxe4 {[%clk 0:00:04.3]} 46... Kf6 {[%clk 0:00:07.6]} 47. Kf4 {[%clk 0:00:05.3]}
47... Kg6 {[%clk 0:00:08.5]} 48. Kg4 {[%clk 0:00:06.2]} 48... Bc7 {[%clk
0:00:08.9]} 49. g3 {[%clk 0:00:06.5]} 49... Kf6 {[%clk 0:00:09.3]} 50. Kh4
{[%clk 0:00:05.6]} 50... Ke6 {[%clk 0:00:10.4]} 51. g4 {[%clk 0:00:05.1]} 51...
Kd5 {[%clk 0:00:11.7]} 52. g5 {[%clk 0:00:05.4]} 52... Kc5 {[%clk 0:00:12.8]}
53. g6 {[%clk 0:00:06.2]} 53... Be5 {[%clk 0:00:13.9]} 54. Kg5 {[%clk
0:00:07.4]} 54... Bg7 {[%clk 0:00:14.9]} 55. Kf5 {[%clk 0:00:08.1]} 55... Kb5
{[%clk 0:00:16.3]} 56. Ke4 {[%clk 0:00:05.6]} 56... Kxa6 {[%clk 0:00:17.2]} 57.
Kd3 {[%clk 0:00:05.9]} 57... Kb5 {[%clk 0:00:19]} 58. Kc2 {[%clk 0:00:06.8]}
58... a5 {[%clk 0:00:20.5]} 59. Kb3 {[%clk 0:00:07.8]} 59... a4+ {[%clk
0:00:21.6]} 60. Ka3 {[%clk 0:00:08.8]} 60... Ka5 {[%clk 0:00:23.1]} 61. Ka2
{[%clk 0:00:09.7]} 61... Kb4 {[%clk 0:00:25]} 62. Kb1 {[%clk 0:00:10.2]} 62...
Kb3 {[%clk 0:00:26.1]} 63. Kc1 {[%clk 0:00:11.3]} 63... a3 {[%clk 0:00:27.6]}
64. Kb1 {[%clk 0:00:12.1]} 64... a2+ {[%clk 0:00:28.5]} 65. Kc1 {[%clk
0:00:13.1]} 65... a1=Q+ {[%clk 0:00:26.3]} 66. Kd2 {[%clk 0:00:14.1]} 66... Qd4+
{[%clk 0:00:26]} 67. Ke2 {[%clk 0:00:15.1]} 67... Kc2 {[%clk 0:00:26.7]} 68. Kf3
{[%clk 0:00:16.2]} 68... Kd2 {[%clk 0:00:26.5]} 69. Kg3 {[%clk 0:00:14.7]} 69...
Ke2 {[%clk 0:00:26.9]} 70. Kh3 {[%clk 0:00:14.6]} 70... Kf2 {[%clk 0:00:24.5]}
71. Kh2 {[%clk 0:00:14.8]} 71... Qh4# {[%clk 0:00:25.4]} 0-1